fUST/lending_fUST_20250206
["ID","MTS","AMOUNT","RATE_DAILY","PERIOD"]
[351861384,1738824645948,-515.42,0.00013972,2]
[351861386,1738824645957,-500.0,0.00013972,2]
[351861388,1738824645967,-1516.58,0.00013972,2]
[351861390,1738824645976,-590.02,0.00013972,2]
[351861392,1738824645985,-566.12,0.00013972,2]
[351861394,1738824645994,-500.0,0.00013972,2]
[351861396,1738824646004,-608.79672195,0.00013972,2]
[351861398,1738824646013,-678.56,0.00013972,2]
[351861400,1738824646023,-500.0,0.00013972,2]
[351861402,1738824646033,-500.0,0.00013972,2]
[351861404,1738824646042,-507.73813683,0.00013972,2]
[351861406,1738824646052,-500.0,0.00013972,2]
[351861409,1738824646065,-958.9,0.00013972,2]
[351861411,1738824646074,-500.0,0.00013972,2]
[351861413,1738824646083,-515.24,0.00013972,2]
[351861415,1738824646092,-500.0,0.00013972,2]
[351861417,1738824646102,-10441.65,0.00013972,2]
[351861419,1738824646112,-500.0,0.00013972,2]
[351861421,1738824646121,-883.74,0.00013972,2]
[351861423,1738824646130,-693.9,0.00013972,2]
[351861425,1738824646139,-2934.8,0.00013972,2]
[351861426,1738824646149,-5009.69,0.00013972,2]
[351861428,1738824646159,-500.0,0.00013972,2]
[351861430,1738824646168,-500.0,0.00013972,2]
[351861431,1738824646177,-500.0,0.00013972,2]
[351861432,1738824646187,-1630.66,0.00013972,2]
[351861433,1738824646196,-500.0,0.00013972,2]
[351861434,1738824646206,-739.28,0.00013972,2]
[351861435,1738824646215,-500.0,0.00013972,2]
[351861436,1738824646224,-222.25817926,0.00013972,2]
[351861437,1738824646233,-500.0,0.00013972,2]
[351861439,1738824646243,-500.0,0.00013972,2]
[351861441,1738824646252,-500.0,0.00013972,2]
[351861443,1738824646261,-3310.21,0.00013972,2]
[351861445,1738824646271,-1450.39,0.00013972,2]
[351861447,1738824646280,-500.0,0.00013972,2]
[351861449,1738824646290,-1712.8,0.00013972,2]
[351861451,1738824646299,-571.75,0.00013972,2]
[351861453,1738824646309,-500.0,0.00013972,2]
[351861455,1738824646318,-500.0,0.00013972,2]
[351861457,1738824646327,-500.0,0.00013972,2]
[351861459,1738824646337,-500.0,0.00013972,2]
[351861461,1738824646347,-863.41,0.00013972,2]
[351861463,1738824646356,-500.0,0.00013972,2]
[351861465,1738824646366,-500.0,0.00013972,2]
[351861467,1738824646375,-709.25,0.00013972,2]
[351861469,1738824646384,-500.0,0.00013972,2]
[351861471,1738824646394,-1772.35,0.00013972,2]
[351861473,1738824646403,-500.0,0.00013972,2]
[351861475,1738824646412,-500.0,0.00013972,2]
[351861477,1738824646422,-500.0,0.00013972,2]
[351861479,1738824646432,-746.74,0.00013972,2]
[351861481,1738824646441,-4325.54,0.00013972,2]
[351861483,1738824646451,-1606.15,0.00013972,2]
[351861485,1738824646461,-626.43,0.00013972,2]
[351861487,1738824646470,-500.0,0.00013972,2]
[351861489,1738824646480,-500.0,0.00013972,2]
[351861491,1738824646489,-4235.16,0.00013972,2]
[351861493,1738824646498,-3235.62,0.00013972,2]
[351861495,1738824646508,-22559.0,0.00013972,2]
[351861497,1738824646517,-802.83,0.00013972,2]
[351861500,1738824646527,-8844.85,0.00013972,2]
[351861502,1738824646536,-1786.89,0.00013972,2]
[351861504,1738824646547,-500.0,0.00013972,2]
[351861506,1738824646557,-834.36,0.00013972,2]
[351861508,1738824646566,-500.0,0.00013972,2]
[351861509,1738824646577,-1744.59,0.00013972,2]
[351861512,1738824646587,-500.0,0.00013972,2]
[351861514,1738824646596,-2592.28,0.00013972,2]
[351861516,1738824646605,-1371.74,0.00013972,2]
[351861518,1738824646615,-394.6836578,0.00013972,2]
[351861520,1738824646626,-500.0,0.00013972,2]
[351861521,1738824646635,-504.48,0.00013972,2]
[351861523,1738824646644,-500.0,0.00013972,2]
[351861526,1738824646658,-500.0,0.00013972,2]
[351861528,1738824646668,-500.0,0.00013972,2]
[351861530,1738824646678,-500.0,0.00013972,2]
[351861532,1738824646687,-500.0,0.00013972,2]
[351861534,1738824646698,-523.14,0.00013972,2]
[351861536,1738824646707,-54214.48,0.00013972,2]
[351861538,1738824646719,-1441.43,0.00013972,2]
[351861540,1738824646734,-936.73,0.00013972,2]
[351861543,1738824646749,-613.53,0.00013972,2]
[351861545,1738824646763,-2003.93,0.00013972,2]
[351861548,1738824646775,-619.5,0.00013972,2]
[351861550,1738824646788,-500.0,0.00013972,2]
[351861552,1738824646801,-2827.37,0.00013972,2]
[351861555,1738824646814,-500.0,0.00013972,2]
[351861557,1738824646827,-5311.61,0.00013972,2]
[351861560,1738824646841,-500.0,0.00013972,2]
[351861562,1738824646855,-2123.3,0.00013972,2]
[351861565,1738824646869,-500.0,0.00013972,2]
[351861567,1738824646883,-1611.08,0.00013972,2]
[351861569,1738824646895,-874.61,0.00013972,2]
[351861572,1738824646909,-2457.5,0.00013972,2]
[351861574,1738824646920,-500.0,0.00013972,2]
[351861577,1738824646934,-556.64317837,0.00013972,2]
[351861579,1738824646947,-400.0,0.00013973,2]
[351861582,1738824646960,-238.481,0.00013985,2]
[351861584,1738824646972,-151.0,0.00014,2]
[351861586,1738824646982,-151.0,0.00014,2]
[351861588,1738824646996,-151.0,0.00014,2]
[351861590,1738824647014,-150.491,0.00014054,2]
[351861592,1738824647035,-1975.0,0.00014054,2]
[351861595,1738824647049,-540.67,0.00014054,2]
[351861597,1738824647061,-2297.0,0.00014054,2]
[351861600,1738824647075,-151.0,0.000141,2]
[351861602,1738824647089,-151.0,0.000141,2]
[351861605,1738824647102,-151.0,0.000141,2]
[351861607,1738824647115,-500.0,0.00014109,2]
[351861609,1738824647126,-500.0,0.00014109,2]
[351861611,1738824647137,-500.0,0.00014109,2]
[351861614,1738824647150,-500.0,0.00014109,2]
[351861616,1738824647165,-500.0,0.00014109,2]
[351861619,1738824647178,-500.0,0.00014109,2]
[351861621,1738824647190,-500.0,0.00014109,2]
[351861623,1738824647201,-500.0,0.00014109,2]
[351861625,1738824647212,-714.35,0.00014109,2]
[351861628,1738824647224,-500.0,0.00014109,2]
[351861630,1738824647237,-500.0,0.00014109,2]
[351861632,1738824647248,-500.0,0.00014109,2]
[351861634,1738824647259,-500.0,0.00014109,2]
[351861636,1738824647273,-500.0,0.00014109,2]
[351861639,1738824647285,-500.0,0.00014109,2]
[351861641,1738824647296,-500.0,0.00014109,2]
[351861643,1738824647308,-500.0,0.00014109,2]
[351861645,1738824647320,-686.88,0.00014109,2]
[351861648,1738824647332,-500.0,0.00014109,2]
[351861650,1738824647346,-500.0,0.00014109,2]
[351861652,1738824647363,-500.0,0.00014109,2]
[351861654,1738824647375,-500.0,0.00014109,2]
[351861657,1738824647386,-500.0,0.00014109,2]
[351861659,1738824647398,-500.0,0.00014109,2]
[351861661,1738824647411,-500.0,0.00014109,2]
[351861664,1738824647424,-500.0,0.00014109,2]
[351861666,1738824647436,-500.0,0.00014109,2]
[351861668,1738824647448,-500.0,0.00014109,2]
[351861670,1738824647460,-608.97,0.00014109,2]
[351861673,1738824647472,-500.0,0.00014109,2]
[351861675,1738824647483,-632.38,0.00014109,2]
[351861677,1738824647495,-500.0,0.00014109,2]
[351861679,1738824647507,-500.0,0.00014109,2]
[351861682,1738824647519,-500.0,0.00014109,2]
[351861684,1738824647531,-500.0,0.00014109,2]
[351861685,1738824647543,-500.0,0.00014109,2]
[351861686,1738824647555,-568.2,0.00014109,2]
[351861687,1738824647567,-500.0,0.00014109,2]
[351861688,1738824647579,-1516.6,0.00014109,2]
[351861689,1738824647591,-830.51,0.00014109,2]
[351861690,1738824647603,-500.0,0.00014109,2]
[351861692,1738824647615,-500.0,0.00014109,2]
[351861695,1738824647629,-1507.74,0.00014109,2]
[351861697,1738824647641,-500.0,0.00014109,2]
[351861699,1738824647657,-500.0,0.00014109,2]
[351861702,1738824647670,-632.17,0.00014109,2]
[351861704,1738824647684,-500.0,0.00014109,2]
[351861706,1738824647697,-558.48,0.00014109,2]
[351861709,1738824647710,-500.0,0.00014109,2]
[351861711,1738824647724,-179.56919123,0.00014109,2]
[351861713,1738824647737,-500.0,0.00014109,2]
[351861715,1738824647749,-500.0,0.00014109,2]
[351861717,1738824647762,-1035.18,0.00014109,2]
[351861720,1738824647776,-500.0,0.00014109,2]
[351861722,1738824647789,-500.0,0.00014109,2]
[351861724,1738824647802,-500.0,0.00014109,2]
[351861727,1738824647814,-500.0,0.00014109,2]
[351861729,1738824647827,-865.28,0.00014109,2]
[351861731,1738824647844,-1925.87,0.00014109,2]
[351861733,1738824647858,-500.0,0.00014109,2]
[351861736,1738824647875,-500.0,0.00014109,2]
[351861738,1738824647887,-500.0,0.00014109,2]
[351861740,1738824647899,-500.0,0.00014109,2]
[351861742,1738824647911,-720.03,0.00014109,2]
[351861745,1738824647923,-500.0,0.00014109,2]
[351861747,1738824647935,-631.5,0.00014109,2]
[351861749,1738824647947,-1337.91,0.00014109,2]
[351861751,1738824647959,-751.64,0.00014109,2]
[351861753,1738824647971,-500.0,0.00014109,2]
[351861756,1738824647983,-703.19,0.00014109,2]
[351861758,1738824647995,-500.0,0.00014109,2]
[351861760,1738824648008,-500.0,0.00014109,2]
[351861762,1738824648020,-579.19,0.00014109,2]
[351861764,1738824648032,-500.0,0.00014109,2]
[351861767,1738824648046,-500.0,0.00014109,2]
[351861769,1738824648059,-1166.37,0.00014109,2]
[351861771,1738824648071,-500.0,0.00014109,2]
[351861773,1738824648085,-662.51,0.00014109,2]
[351861776,1738824648098,-500.0,0.00014109,2]
[351861778,1738824648111,-542.13,0.00014109,2]
[351861780,1738824648124,-500.0,0.00014109,2]
[351861782,1738824648136,-500.0,0.00014109,2]
[351861785,1738824648148,-500.0,0.00014109,2]
[351861787,1738824648161,-500.0,0.00014109,2]
[351861789,1738824648175,-500.0,0.00014109,2]
[351861792,1738824648187,-500.76,0.00014109,2]
[351861794,1738824648200,-500.0,0.00014109,2]
[351861796,1738824648212,-541.44,0.00014109,2]
[351861799,1738824648227,-500.0,0.00014109,2]
[351861801,1738824648241,-578.45,0.00014109,2]
[351861803,1738824648255,-917.26,0.00014109,2]
[351861806,1738824648268,-500.0,0.00014109,2]
[351861808,1738824648282,-500.0,0.00014109,2]
[351861810,1738824648295,-920.07,0.00014109,2]
[351861812,1738824648308,-500.0,0.00014109,2]
[351861815,1738824648322,-500.0,0.00014109,2]
[351861817,1738824648335,-500.0,0.00014109,2]
[351861819,1738824648348,-1575.64,0.00014109,2]
[351861821,1738824648360,-500.0,0.00014109,2]
[351861824,1738824648372,-500.0,0.00014109,2]
[351861826,1738824648385,-500.0,0.00014109,2]
[351861828,1738824648399,-500.0,0.00014109,2]
[351861830,1738824648411,-587.18,0.00014109,2]
[351861833,1738824648423,-500.0,0.00014109,2]
[351861835,1738824648435,-985.18,0.00014109,2]
[351861837,1738824648447,-500.0,0.00014109,2]
[351861839,1738824648459,-500.0,0.00014109,2]
[351861841,1738824648470,-500.0,0.00014109,2]
[351861843,1738824648481,-500.0,0.00014109,2]
[351861846,1738824648491,-1892.84,0.00014109,2]
[351861848,1738824648502,-5432.48,0.00014109,2]
[351861850,1738824648513,-716.28,0.00014109,2]
[351861872,1738824648737,-500.0,0.00014109,2]
[351861875,1738824648763,-500.0,0.00014109,2]
[351861878,1738824648788,-328.1730189,0.00014109,2]
[351861880,1738824648799,-500.0,0.00014109,2]
[351861882,1738824648811,-500.0,0.00014109,2]
[351861884,1738824648823,-500.0,0.00014109,2]
[351861886,1738824648833,-560.51,0.00014109,2]
[351861888,1738824648845,-737.41,0.00014109,2]
[351861890,1738824648856,-500.0,0.00014109,2]
[351861892,1738824648866,-500.0,0.00014109,2]
[351861894,1738824648877,-500.0,0.00014109,2]
[351861896,1738824648887,-779.45,0.00014109,2]
[351861897,1738824648896,-1875.24,0.00014109,2]
[351861898,1738824648906,-19668.54,0.00014109,2]
[351861899,1738824648915,-872.99,0.00014109,2]
[351861900,1738824648926,-503.54,0.00014109,2]
[351861901,1738824648935,-500.0,0.00014109,2]
[351861902,1738824648945,-2529.92,0.00014109,2]
[351861903,1738824648955,-500.0,0.00014109,2]
[351861904,1738824648965,-715.59,0.00014109,2]
[351861906,1738824648975,-515.42,0.00014109,2]
[351861908,1738824648984,-1516.58,0.00014109,2]
[351861910,1738824648994,-500.0,0.00014109,2]
[351861912,1738824649004,-590.02,0.00014109,2]
[351861914,1738824649014,-566.12,0.00014109,2]
[351861916,1738824649025,-500.0,0.00014109,2]
[351861918,1738824649034,-678.56,0.00014109,2]
[351861920,1738824649044,-500.0,0.00014109,2]
[351861922,1738824649054,-500.0,0.00014109,2]
[351861924,1738824649063,-500.0,0.00014109,2]
[351861926,1738824649074,-958.9,0.00014109,2]
[351861928,1738824649083,-500.0,0.00014109,2]
[351861931,1738824649094,-515.24,0.00014109,2]
[351861933,1738824649103,-500.0,0.00014109,2]
[351861934,1738824649113,-10441.65,0.00014109,2]
[351861936,1738824649123,-883.74,0.00014109,2]
[351861939,1738824649133,-693.9,0.00014109,2]
[351861941,1738824649143,-2934.8,0.00014109,2]
[351861943,1738824649153,-5009.69,0.00014109,2]
[351861945,1738824649163,-500.0,0.00014109,2]
[351861947,1738824649173,-322.48958285,0.00014109,2]
[351861949,1738824649183,-500.0,0.00014109,2]
[351861950,1738824649192,-1630.66,0.00014109,2]
[351861952,1738824649201,-500.0,0.00014109,2]
[351861954,1738824649211,-739.28,0.00014109,2]
[351861956,1738824649221,-500.0,0.00014109,2]
[351861959,1738824649232,-500.0,0.00014109,2]
[351861961,1738824649242,-500.0,0.00014109,2]
[351861963,1738824649251,-500.0,0.00014109,2]
[351861965,1738824649261,-3310.21,0.00014109,2]
[351861967,1738824649270,-1450.39,0.00014109,2]
[351861969,1738824649280,-500.0,0.00014109,2]
[351861971,1738824649290,-1712.8,0.00014109,2]
[351861973,1738824649300,-571.75,0.00014109,2]
[351861975,1738824649310,-500.0,0.00014109,2]
[351861977,1738824649320,-500.0,0.00014109,2]
[351861979,1738824649329,-500.0,0.00014109,2]
[351861981,1738824649339,-500.0,0.00014109,2]
[351861983,1738824649348,-863.41,0.00014109,2]
[351861985,1738824649358,-500.0,0.00014109,2]
[351861987,1738824649367,-648.73140527,0.00014109,2]
[351861989,1738824649377,-709.25,0.00014109,2]
[351861991,1738824649387,-500.0,0.00014109,2]
[351861993,1738824649397,-1772.35,0.00014109,2]
[351861995,1738824649407,-500.0,0.00014109,2]
[351861997,1738824649416,-500.0,0.00014109,2]
[351861999,1738824649426,-500.0,0.00014109,2]
[351862001,1738824649435,-746.74,0.00014109,2]
[351862003,1738824649444,-4325.54,0.00014109,2]
[351862005,1738824649454,-1606.15,0.00014109,2]
[351862007,1738824649463,-626.43,0.00014109,2]
[351862008,1738824649472,-500.0,0.00014109,2]
[351862010,1738824649482,-500.0,0.00014109,2]
[351862013,1738824649491,-4235.16,0.00014109,2]
[351862015,1738824649501,-3235.62,0.00014109,2]
[351862017,1738824649511,-22559.0,0.00014109,2]
[351862019,1738824649521,-802.83,0.00014109,2]
[351862021,1738824649532,-8844.85,0.00014109,2]
[351862023,1738824649542,-1786.89,0.00014109,2]
[351862025,1738824649552,-500.0,0.00014109,2]
[351862027,1738824649562,-834.36,0.00014109,2]
[351862029,1738824649572,-500.0,0.00014109,2]
[351862031,1738824649581,-1744.59,0.00014109,2]
[351862032,1738824649595,-500.0,0.00014109,2]
[351862034,1738824649604,-2592.28,0.00014109,2]
[351862036,1738824649614,-1371.74,0.00014109,2]
[351862038,1738824649624,-500.0,0.00014109,2]
[351862040,1738824649634,-504.48,0.00014109,2]
[351862042,1738824649644,-500.0,0.00014109,2]
[351862044,1738824649658,-500.0,0.00014109,2]
[351862046,1738824649668,-500.0,0.00014109,2]
[351862048,1738824649679,-500.0,0.00014109,2]
[351862050,1738824649688,-500.0,0.00014109,2]
[351862052,1738824649699,-523.14,0.00014109,2]
[351862054,1738824649708,-54214.48,0.00014109,2]
[351862056,1738824649717,-1441.43,0.00014109,2]
[351862058,1738824649728,-936.73,0.00014109,2]
[351862060,1738824649738,-613.53,0.00014109,2]
[351862062,1738824649749,-2003.93,0.00014109,2]
[351862065,1738824649759,-619.5,0.00014109,2]
[351862067,1738824649769,-500.0,0.00014109,2]
[351862069,1738824649781,-2827.37,0.00014109,2]
[351862071,1738824649790,-500.0,0.00014109,2]
[351862073,1738824649800,-5311.61,0.00014109,2]
[351862075,1738824649810,-324.45888611,0.00014109,2]
[351862077,1738824649819,-2123.3,0.00014109,2]
[351862079,1738824649829,-500.0,0.00014109,2]
[351862081,1738824649841,-1611.08,0.00014109,2]
[351862083,1738824649850,-874.61,0.00014109,2]
[351862085,1738824649860,-2457.5,0.00014109,2]
[351862087,1738824649869,-369.2302329,0.00014137,2]
[351862089,1738824649880,-354.6875562,0.00014137,2]
[351862091,1738824649890,-354.6875562,0.00014137,2]
[351862093,1738824649900,-1388.0655931,0.00014146,2]
[351862095,1738824649910,-486.37945359,0.00014146,2]
[351862097,1738824649919,-486.37945359,0.00014146,2]
[351862099,1738824649928,-486.37945359,0.00014146,2]
[351862101,1738824649938,-486.37945359,0.00014146,2]
[351862103,1738824649947,-486.37945359,0.00014146,2]
[351862105,1738824649957,-486.37945359,0.00014146,2]
[351862107,1738824649966,-486.37945359,0.00014146,2]
[351862109,1738824649976,-486.37945359,0.00014146,2]
[351862111,1738824649986,-486.37945359,0.00014146,2]
[351862113,1738824649995,-486.37945359,0.00014146,2]
[351862115,1738824650004,-486.37945359,0.00014146,2]
[351862117,1738824650014,-486.37945359,0.00014146,2]
[351862119,1738824650023,-486.37945359,0.00014146,2]
[351862121,1738824650034,-486.37945359,0.00014146,2]
[351862123,1738824650043,-486.37945359,0.00014146,2]
[351862125,1738824650052,-486.37945359,0.00014146,2]
[351862127,1738824650062,-486.37945359,0.00014146,2]
[351862129,1738824650071,-486.37945359,0.00014146,2]
[351862131,1738824650081,-486.37945359,0.00014146,2]
[351862132,1738824650090,-486.37,0.00014146,2]
[351862133,1738824650099,-158.879,0.0001418,2]
[351862134,1738824650108,-151.0,0.000142,2]
[351862135,1738824650118,-1000.0,0.00014221,2]
[351862136,1738824650127,-301.40027748,0.00014221,2]
[351862137,1738824650136,-277.32900659,0.00014221,2]
[351862139,1738824650145,-201.237282,0.00014221,2]
[351862141,1738824650154,-1000.0,0.00014221,2]
[351862143,1738824650163,-320.69970759,0.00014234,2]
[351862145,1738824650172,-500.0,0.00014234,2]
[351862147,1738824650182,-286.49826791,0.00014234,2]
[351862149,1738824650191,-311.37696299,0.00014234,2]
[351862151,1738824650200,-500.82682779,0.00014234,2]
[351862153,1738824650209,-469.22122713,0.00014234,2]
[351862155,1738824650219,-280.99506849,0.00014234,2]
[351862157,1738824650228,-350.99583186,0.00014234,2]
[351862159,1738824650238,-160.0,0.00014245,2]
[351862161,1738824650247,-500.0,0.00014246,2]
[351862163,1738824650256,-500.0,0.00014246,2]
[351862165,1738824650266,-500.0,0.00014246,2]
[351862167,1738824650275,-276.9602839,0.00014246,2]
[351862169,1738824650287,-500.0,0.00014246,2]
[351862171,1738824650296,-500.0,0.00014246,2]
[351862173,1738824650305,-500.0,0.00014246,2]
[351862175,1738824650315,-714.35,0.00014246,2]
[351862177,1738824650324,-500.0,0.00014246,2]
[351862179,1738824650334,-588.64550532,0.00014246,2]
[351862181,1738824650343,-500.0,0.00014246,2]
[351862183,1738824650352,-500.0,0.00014246,2]
[351862185,1738824650362,-386.201608,0.00014246,2]
[351862187,1738824650371,-500.0,0.00014246,2]
[351862189,1738824650380,-340.92363581,0.00014246,2]
[351862212,1738824650581,-159.07636419,0.00014246,2]
[351862214,1738824650591,-500.0,0.00014246,2]
[351862216,1738824650600,-686.88,0.00014246,2]
[351862218,1738824650610,-500.0,0.00014246,2]
[351862220,1738824650619,-500.0,0.00014246,2]
[351862222,1738824650628,-500.0,0.00014246,2]
[351862224,1738824650637,-500.0,0.00014246,2]
[351862226,1738824650647,-500.0,0.00014246,2]
[351862228,1738824650659,-500.0,0.00014246,2]
[351862230,1738824650668,-500.0,0.00014246,2]
[351862232,1738824650677,-500.0,0.00014246,2]
[351862234,1738824650687,-500.0,0.00014246,2]
[351862236,1738824650697,-608.97,0.00014246,2]
[351862238,1738824650706,-500.0,0.00014246,2]
[351862240,1738824650715,-632.38,0.00014246,2]
[351862242,1738824650727,-500.0,0.00014246,2]
[351862244,1738824650737,-500.0,0.00014246,2]
[351862246,1738824650746,-500.0,0.00014246,2]
[351862248,1738824650756,-500.0,0.00014246,2]
[351862250,1738824650765,-500.0,0.00014246,2]
[351862252,1738824650774,-568.2,0.00014246,2]
[351862254,1738824650784,-500.0,0.00014246,2]
[351862256,1738824650793,-1516.6,0.00014246,2]
[351862258,1738824650803,-830.51,0.00014246,2]
[351862260,1738824650812,-500.0,0.00014246,2]
[351862262,1738824650821,-500.0,0.00014246,2]
[351862264,1738824650830,-1507.74,0.00014246,2]
[351862266,1738824650840,-500.0,0.00014246,2]
[351862268,1738824650850,-473.11195959,0.00014246,2]
[351862270,1738824650859,-632.17,0.00014246,2]
[351862272,1738824650868,-500.0,0.00014246,2]
[351862274,1738824650878,-558.48,0.00014246,2]
[351862276,1738824650887,-500.0,0.00014246,2]
[351862278,1738824650897,-500.0,0.00014246,2]
[351862280,1738824650906,-500.0,0.00014246,2]
[351862282,1738824650916,-1035.18,0.00014246,2]
[351862284,1738824650925,-500.0,0.00014246,2]
[351862286,1738824650934,-500.0,0.00014246,2]
[351862288,1738824650944,-475.45449773,0.00014246,2]
[351862290,1738824650954,-500.0,0.00014246,2]
[351862292,1738824650964,-865.28,0.00014246,2]
[351862295,1738824650974,-1925.87,0.00014246,2]
[351862297,1738824650983,-500.0,0.00014246,2]
[351862299,1738824650993,-500.0,0.00014246,2]
[351862301,1738824651002,-382.7660543,0.00014246,2]
[351862303,1738824651012,-189.52594847,0.00014246,2]
[351862305,1738824651021,-720.03,0.00014246,2]
[351862307,1738824651031,-500.0,0.00014246,2]
[351862309,1738824651040,-631.5,0.00014246,2]
[351862311,1738824651050,-1337.91,0.00014246,2]
[351862313,1738824651060,-751.64,0.00014246,2]
[351862315,1738824651069,-500.0,0.00014246,2]
[351862317,1738824651079,-703.19,0.00014246,2]
[351862319,1738824651088,-500.0,0.00014246,2]
[351862321,1738824651098,-500.0,0.00014246,2]
[351862323,1738824651108,-579.19,0.00014246,2]
[351862324,1738824651117,-500.0,0.00014246,2]
[351862325,1738824651126,-500.0,0.00014246,2]
[351862326,1738824651136,-1166.37,0.00014246,2]
[351862327,1738824651145,-500.0,0.00014246,2]
[351862328,1738824651155,-662.51,0.00014246,2]
[351862329,1738824651164,-500.0,0.00014246,2]
[351862330,1738824651174,-542.13,0.00014246,2]
[351862332,1738824651184,-500.0,0.00014246,2]
[351862335,1738824651194,-500.0,0.00014246,2]
[351862337,1738824651203,-500.0,0.00014246,2]
[351862339,1738824651213,-500.0,0.00014246,2]
[351862341,1738824651223,-500.0,0.00014246,2]
[351862343,1738824651233,-500.76,0.00014246,2]
[351862345,1738824651243,-500.0,0.00014246,2]
[351862347,1738824651252,-541.44,0.00014246,2]
[351862349,1738824651262,-500.0,0.00014246,2]
[351862351,1738824651271,-578.45,0.00014246,2]
[351862353,1738824651282,-917.26,0.00014246,2]
[351862355,1738824651292,-500.0,0.00014246,2]
[351862357,1738824651302,-500.0,0.00014246,2]
[351862359,1738824651311,-920.07,0.00014246,2]
[351862361,1738824651321,-500.0,0.00014246,2]
[351862363,1738824651331,-500.0,0.00014246,2]
[351862365,1738824651340,-510.32229887,0.00014246,2]
[351862367,1738824651350,-1575.64,0.00014246,2]
[351862369,1738824651359,-500.0,0.00014246,2]
[351862371,1738824651368,-500.0,0.00014246,2]
[351862373,1738824651378,-500.0,0.00014246,2]
[351862375,1738824651387,-500.0,0.00014246,2]
[351862377,1738824651397,-587.18,0.00014246,2]
[351862379,1738824651407,-500.0,0.00014246,2]
[351862381,1738824651416,-985.18,0.00014246,2]
[351862383,1738824651426,-500.0,0.00014246,2]
[351862385,1738824651435,-500.0,0.00014246,2]
[351862387,1738824651445,-500.0,0.00014246,2]
[351862389,1738824651455,-500.0,0.00014246,2]
[351862391,1738824651464,-1892.84,0.00014246,2]
[351862393,1738824651474,-5432.48,0.00014246,2]
[351862396,1738824651484,-716.28,0.00014246,2]
[351862398,1738824651493,-500.0,0.00014246,2]
[351862400,1738824651503,-500.0,0.00014246,2]
[351862402,1738824651513,-500.0,0.00014246,2]
[351862404,1738824651523,-500.0,0.00014246,2]
[351862406,1738824651534,-500.0,0.00014246,2]
[351862408,1738824651544,-560.51,0.00014246,2]
[351862409,1738824651554,-737.41,0.00014246,2]
[351862412,1738824651564,-500.0,0.00014246,2]
[351862413,1738824651573,-500.0,0.00014246,2]
[351862416,1738824651583,-500.0,0.00014246,2]
[351862418,1738824651592,-779.45,0.00014246,2]
[351862420,1738824651603,-1875.24,0.00014246,2]
[351862422,1738824651613,-19668.54,0.00014246,2]
[351862424,1738824651623,-872.99,0.00014246,2]
[351862426,1738824651632,-503.54,0.00014246,2]
[351862428,1738824651642,-500.0,0.00014246,2]
[351862430,1738824651653,-2529.92,0.00014246,2]
[351862432,1738824651663,-500.0,0.00014246,2]
[351862434,1738824651672,-715.59,0.00014246,2]